[Event "December 12 Early 2023"]
[Site "https://www.chess.com"]
[Date "2023.12.12"]
[Round "11"]
[White "Matinian, Nikita"]
[Black "Sychev, Klementy"]
[Result "0-1"]
[Board "8"]
[TimeControl "180+1"]
[WhiteFideId "24129100"]
[BlackFideId "4114060"]
[WhiteElo "2792"]
[BlackElo "2943"]
[WhiteTeam "FID"]
[BlackTeam "FID"]
[WhiteClock "0:00:00"]
[BlackClock "0:00:10"]

1. e4 {[%clk 0:03:00]}  e5 {[%clk 0:02:59]} 2. Nf3 {[%clk 0:03:01]}  Nc6 {[%clk 0:03:00]} 3. Bb5 {[%clk 0:03:01]}  a6 {[%clk 0:03:00]} 4. Ba4 {[%clk 0:03:02]}  f5 {[%clk 0:03:00]} 5. d4 {[%clk 0:02:45]}  exd4 {[%clk 0:03:00]} 6. e5 {[%clk 0:02:44]}  b5 {[%clk 0:03:00]} 7. Bb3 {[%clk 0:02:44]}  Na5 {[%clk 0:03:00]} 8. O-O {[%clk 0:02:34]}  Bb7 {[%clk 0:02:59]} 9. Re1 {[%clk 0:02:27]}  Nxb3 {[%clk 0:02:52]} 10. axb3 {[%clk 0:02:25]}  Bc5 {[%clk 0:02:53]} 11. Nxd4 {[%clk 0:01:54]}  Qh4 {[%clk 0:02:31]} 12. Be3 {[%clk 0:01:40]}  f4 {[%clk 0:01:48]} 13. Nf3 {[%clk 0:00:26]}  Bxf3 {[%clk 0:01:46]} 14. Qxf3 {[%clk 0:00:27]}  fxe3 {[%clk 0:01:46]} 15. Qxa8+ {[%clk 0:00:28]}  Ke7 {[%clk 0:01:46]} 16. Re2 {[%clk 0:00:08]}  exf2+ {[%clk 0:01:45]} 17. Kf1 {[%clk 0:00:08]}  Qxh2 {[%clk 0:01:42]} 18. Rxf2 {[%clk 0:00:08]}  Bxf2 {[%clk 0:00:58]} 19. Kxf2 {[%clk 0:00:09]}  Qf4+ {[%clk 0:00:58]} 20. Qf3 {[%clk 0:00:07]}  Qd4+ {[%clk 0:00:51]} 21. Qe3 {[%clk 0:00:03]}  Qxe3+ {[%clk 0:00:32]} 22. Kxe3 {[%clk 0:00:04]}  Nh6 {[%clk 0:00:32]} 23. Rxa6 {[%clk 0:00:04]}  Rf8 {[%clk 0:00:29]} 24. Nc3 {[%clk 0:00:04]}  Ng4+ {[%clk 0:00:27]} 25. Kd4 {[%clk 0:00:03]}  Rf4+ {[%clk 0:00:22]} 26. Kd3 {[%clk 0:00:03]}  c6 {[%clk 0:00:19]} 27. Ra7 {[%clk 0:00:02]}  Rf2 {[%clk 0:00:17]} 28. Ne4 {[%clk 0:00:02]}  Rxg2 {[%clk 0:00:15]} 29. e6 {[%clk 0:00:02]}  Kxe6 {[%clk 0:00:15]} 30. Nc5+ {[%clk 0:00:03]}  Kf5 {[%clk 0:00:11]} 31. Nxd7 {[%clk 0:00:01]}  h5 {[%clk 0:00:11]} 32. Nc5 {[%clk 0:00:01]}  h4 {[%clk 0:00:10]} 33. Rf7+ {[%clk 0:00:01]}  Kg6 {[%clk 0:00:10]} 34. Rf4 {[%clk 0:00:01]}  h3 {[%clk 0:00:10]} 35. Rf3 {[%clk 0:00:00]}  Ne5+ {[%clk 0:00:10]} 0-1

[Event "December 12 Early 2023"]
[Site "https://www.chess.com"]
[Date "2023.12.12"]
[Round "11"]
[White "Zakhartsov, Vladimir"]
[Black "Samunenkov, Ihor"]
[Result "0-1"]
[Board "10"]
[TimeControl "180+1"]
[WhiteFideId "4145097"]
[BlackFideId "14187086"]
[WhiteElo "2928"]
[BlackElo "2764"]
[WhiteTeam "RUS"]
[BlackTeam "UKR"]
[WhiteClock "0:01:19"]
[BlackClock "0:00:23"]

1. d4 {[%clk 0:03:00]}  Nf6 {[%clk 0:02:59]} 2. c4 {[%clk 0:03:00]}  e6 {[%clk 0:03:00]} 3. Nf3 {[%clk 0:02:59]}  d5 {[%clk 0:03:00]} 4. g3 {[%clk 0:02:58]}  Be7 {[%clk 0:02:57]} 5. Bg2 {[%clk 0:02:58]}  O-O {[%clk 0:02:57]} 6. Nc3 {[%clk 0:02:59]}  c6 {[%clk 0:02:58]} 7. O-O {[%clk 0:02:56]}  a5 {[%clk 0:02:58]} 8. Qd3 {[%clk 0:02:54]}  b6 {[%clk 0:02:48]} 9. Ne5 {[%clk 0:02:52]}  Nfd7 {[%clk 0:02:45]} 10. Nxd7 {[%clk 0:02:42]}  Nxd7 {[%clk 0:02:45]} 11. cxd5 {[%clk 0:02:37]}  Ba6 {[%clk 0:02:39]} 12. Qd1 {[%clk 0:02:38]}  cxd5 {[%clk 0:02:39]} 13. Re1 {[%clk 0:02:39]}  Rc8 {[%clk 0:02:31]} 14. e4 {[%clk 0:02:37]}  dxe4 {[%clk 0:02:31]} 15. Bxe4 {[%clk 0:02:36]}  Nf6 {[%clk 0:02:29]} 16. Bg2 {[%clk 0:02:36]}  Bb4 {[%clk 0:02:24]} 17. Bf4 {[%clk 0:02:35]}  Rxc3 {[%clk 0:02:16]} 18. bxc3 {[%clk 0:02:36]}  Bxc3 {[%clk 0:02:17]} 19. Be5 {[%clk 0:02:36]}  Bxa1 {[%clk 0:02:11]} 20. Qxa1 {[%clk 0:02:37]}  Bc4 {[%clk 0:02:04]} 21. Qb2 {[%clk 0:02:33]}  b5 {[%clk 0:01:59]} 22. d5 {[%clk 0:02:24]}  exd5 {[%clk 0:01:51]} 23. Bd4 {[%clk 0:02:23]}  b4 {[%clk 0:01:45]} 24. a3 {[%clk 0:02:23]}  b3 {[%clk 0:01:44]} 25. h4 {[%clk 0:02:20]}  a4 {[%clk 0:01:41]} 26. Bc3 {[%clk 0:02:17]}  Re8 {[%clk 0:01:33]} 27. Rd1 {[%clk 0:02:17]}  Re2 {[%clk 0:01:28]} 28. Qc1 {[%clk 0:02:18]}  Ne4 {[%clk 0:01:19]} 29. Bd4 {[%clk 0:02:08]}  Rc2 {[%clk 0:01:07]} 30. Qe3 {[%clk 0:02:04]}  Nxf2 {[%clk 0:00:56]} 31. Re1 {[%clk 0:02:03]}  Ne4 {[%clk 0:00:52]} 32. Bxe4 {[%clk 0:01:59]}  dxe4 {[%clk 0:00:53]} 33. Qxe4 {[%clk 0:02:00]}  h6 {[%clk 0:00:47]} 34. Qg4 {[%clk 0:01:44]}  f6 {[%clk 0:00:43]} 35. Bxf6 {[%clk 0:01:39]}  Qxf6 {[%clk 0:00:32]} 36. Re8+ {[%clk 0:01:39]}  Kh7 {[%clk 0:00:26]} 37. Qe4+ {[%clk 0:01:19]}  g6 {[%clk 0:00:23]} 0-1

[Event "December 12 Early 2023"]
[Site "https://www.chess.com"]
[Date "2023.12.12"]
[Round "11"]
[White "Durarbayli, Vasif"]
[Black "Alexandre, Anne Shopie Elizabeth"]
[Result "1/2-1/2"]
[Board "11"]
[TimeControl "180+1"]
[WhiteFideId "13402935"]
[BlackFideId "11902418"]
[WhiteElo "2912"]
[BlackElo "2818"]
[WhiteTeam "AZE"]
[BlackTeam "HAI"]
[WhiteClock "0:00:16"]
[BlackClock "0:00:45"]

1. e4 {[%clk 0:03:00]}  c5 {[%clk 0:03:00]} 2. Nf3 {[%clk 0:03:00]}  d6 {[%clk 0:03:01]} 3. d4 {[%clk 0:03:01]}  cxd4 {[%clk 0:03:01]} 4. Nxd4 {[%clk 0:03:02]}  Nf6 {[%clk 0:03:02]} 5. Nc3 {[%clk 0:03:02]}  a6 {[%clk 0:03:02]} 6. Bg5 {[%clk 0:03:03]}  Nbd7 {[%clk 0:03:02]} 7. Qe2 {[%clk 0:03:02]}  h6 {[%clk 0:03:00]} 8. Bh4 {[%clk 0:03:03]}  g6 {[%clk 0:03:00]} 9. O-O-O {[%clk 0:03:02]}  Bg7 {[%clk 0:02:52]} 10. f4 {[%clk 0:02:57]}  e5 {[%clk 0:02:52]} 11. fxe5 {[%clk 0:02:52]}  dxe5 {[%clk 0:02:53]} 12. Nf3 {[%clk 0:02:47]}  Qc7 {[%clk 0:02:49]} 13. g4 {[%clk 0:02:42]}  b5 {[%clk 0:02:43]} 14. Bg3 {[%clk 0:02:26]}  Nxg4 {[%clk 0:02:36]} 15. Nd5 {[%clk 0:02:26]}  Qb8 {[%clk 0:02:36]} 16. Bh3 {[%clk 0:02:24]}  h5 {[%clk 0:02:32]} 17. Rhf1 {[%clk 0:02:12]}  Ndf6 {[%clk 0:02:26]} 18. Nxe5 {[%clk 0:01:58]}  Nxe5 {[%clk 0:02:20]} 19. Bxc8 {[%clk 0:01:56]}  Nxd5 {[%clk 0:02:13]} 20. exd5 {[%clk 0:01:46]}  Qxc8 {[%clk 0:02:13]} 21. Bxe5 {[%clk 0:01:45]}  O-O {[%clk 0:02:13]} 22. Bxg7 {[%clk 0:01:44]}  Kxg7 {[%clk 0:02:13]} 23. Qe5+ {[%clk 0:01:38]}  f6 {[%clk 0:02:10]} 24. Qd4 {[%clk 0:01:33]}  Qg4 {[%clk 0:02:04]} 25. Rf4 {[%clk 0:01:33]}  Qe2 {[%clk 0:02:01]} 26. d6 {[%clk 0:01:15]}  Rac8 {[%clk 0:01:52]} 27. Qd2 {[%clk 0:00:51]}  Qxd2+ {[%clk 0:01:50]} 28. Rxd2 {[%clk 0:00:52]}  Rfd8 {[%clk 0:01:36]} 29. a4 {[%clk 0:00:46]}  g5 {[%clk 0:01:22]} 30. Re4 {[%clk 0:00:39]}  Rd7 {[%clk 0:01:16]} 31. axb5 {[%clk 0:00:38]}  axb5 {[%clk 0:01:17]} 32. Rd5 {[%clk 0:00:35]}  Rcd8 {[%clk 0:01:16]} 33. Red4 {[%clk 0:00:31]}  Kg6 {[%clk 0:01:13]} 34. Kd2 {[%clk 0:00:24]}  f5 {[%clk 0:01:10]} 35. Kc3 {[%clk 0:00:23]}  Rc8+ {[%clk 0:01:05]} 36. Kb3 {[%clk 0:00:22]}  Rc6 {[%clk 0:01:05]} 37. c3 {[%clk 0:00:21]}  Kf6 {[%clk 0:00:57]} 38. Kb4 {[%clk 0:00:19]}  Ke6 {[%clk 0:00:57]} 39. Kxb5 {[%clk 0:00:17]}  Rcxd6 {[%clk 0:00:57]} 40. Rxd6+ {[%clk 0:00:16]}  Rxd6 {[%clk 0:00:58]} 41. Kc5 {[%clk 0:00:17]}  Rxd4 {[%clk 0:00:46]} 42. Kxd4 {[%clk 0:00:18]}  g4 {[%clk 0:00:46]} 43. b4 {[%clk 0:00:15]}  h4 {[%clk 0:00:44]} 44. Ke3 {[%clk 0:00:15]}  Ke5 {[%clk 0:00:44]} 45. b5 {[%clk 0:00:15]}  f4+ {[%clk 0:00:44]} 46. Kf2 {[%clk 0:00:15]}  g3+ {[%clk 0:00:43]} 47. hxg3 {[%clk 0:00:15]}  fxg3+ {[%clk 0:00:42]} 48. Kg2 {[%clk 0:00:15]}  Kd6 {[%clk 0:00:43]} 49. c4 {[%clk 0:00:13]}  Kc5 {[%clk 0:00:43]} 50. Kh3 {[%clk 0:00:14]}  Kb6 {[%clk 0:00:43]} 51. Kg2 {[%clk 0:00:15]}  Kc5 {[%clk 0:00:44]} 52. Kh3 {[%clk 0:00:16]}  Kb6 {[%clk 0:00:44]} 53. Kg2 {[%clk 0:00:16]}  Kc5 {[%clk 0:00:45]} 1/2-1/2

[Event "December 12 Early 2023"]
[Site "https://www.chess.com"]
[Date "2023.12.12"]
[Round "11"]
[White "Nepomniachtchi, Ian"]
[Black "Weetik, Vjacheslav"]
[Result "1-0"]
[Board "13"]
[TimeControl "180+1"]
[WhiteFideId "4168119"]
[BlackFideId "4153472"]
[WhiteElo "3095"]
[BlackElo "2780"]
[WhiteTeam "RUS"]
[BlackTeam "RUS"]
[WhiteClock "0:01:25"]
[BlackClock "0:00:26"]

1. e4 {[%clk 0:03:00]}  c6 {[%clk 0:03:00]} 2. d4 {[%clk 0:02:59]}  d5 {[%clk 0:03:00]} 3. Nc3 {[%clk 0:03:00]}  dxe4 {[%clk 0:03:00]} 4. Nxe4 {[%clk 0:03:01]}  Bf5 {[%clk 0:03:00]} 5. Ng3 {[%clk 0:03:01]}  Bg6 {[%clk 0:03:01]} 6. c3 {[%clk 0:03:01]}  e6 {[%clk 0:02:59]} 7. h4 {[%clk 0:03:01]}  h6 {[%clk 0:02:58]} 8. Nh3 {[%clk 0:03:00]}  Bd6 {[%clk 0:02:59]} 9. Nf4 {[%clk 0:02:59]}  Bxf4 {[%clk 0:02:59]} 10. Bxf4 {[%clk 0:02:59]}  Nf6 {[%clk 0:02:59]} 11. Qb3 {[%clk 0:02:39]}  Qe7 {[%clk 0:02:59]} 12. h5 {[%clk 0:02:25]}  Bh7 {[%clk 0:02:59]} 13. Be2 {[%clk 0:02:24]}  O-O {[%clk 0:02:58]} 14. O-O {[%clk 0:02:23]}  Nd5 {[%clk 0:02:53]} 15. Bd2 {[%clk 0:02:22]}  Qc7 {[%clk 0:02:43]} 16. c4 {[%clk 0:02:19]}  Nf6 {[%clk 0:02:35]} 17. Rfe1 {[%clk 0:02:15]}  Nbd7 {[%clk 0:02:34]} 18. Bf3 {[%clk 0:02:14]}  Rfd8 {[%clk 0:02:25]} 19. Rad1 {[%clk 0:02:14]}  Rab8 {[%clk 0:02:14]} 20. Qa3 {[%clk 0:02:09]}  c5 {[%clk 0:01:55]} 21. Qxa7 {[%clk 0:01:53]}  cxd4 {[%clk 0:01:22]} 22. Ba5 {[%clk 0:01:52]}  Qxc4 {[%clk 0:01:16]} 23. Bxd8 {[%clk 0:01:52]}  Rxd8 {[%clk 0:01:17]} 24. b3 {[%clk 0:01:45]}  Qb5 {[%clk 0:01:04]} 25. Rxd4 {[%clk 0:01:38]}  e5 {[%clk 0:00:51]} 26. Rdd1 {[%clk 0:01:31]}  Qb4 {[%clk 0:00:32]} 27. Qxb7 {[%clk 0:01:29]}  Qh4 {[%clk 0:00:32]} 28. Qc7 {[%clk 0:01:26]}  Rf8 {[%clk 0:00:26]} 29. Rxd7 {[%clk 0:01:25]} 1-0

[Event "December 12 Early 2023"]
[Site "https://www.chess.com"]
[Date "2023.12.12"]
[Round "11"]
[White "Ashraf, Artin"]
[Black "Mamedov, Edgar"]
[Result "1/2-1/2"]
[Board "15"]
[TimeControl "180+1"]
[WhiteFideId "22514805"]
[BlackFideId "13739980"]
[WhiteElo "2902"]
[BlackElo "2798"]
[WhiteTeam "IRI"]
[BlackTeam "KAZ"]
[WhiteClock "0:00:05"]
[BlackClock "0:00:04"]

1. Nf3 {[%clk 0:02:55]}  d5 {[%clk 0:02:59]} 2. d4 {[%clk 0:02:55]}  Nf6 {[%clk 0:02:58]} 3. c4 {[%clk 0:02:54]}  e6 {[%clk 0:02:58]} 4. Nc3 {[%clk 0:02:54]}  c6 {[%clk 0:02:58]} 5. e3 {[%clk 0:02:47]}  Nbd7 {[%clk 0:02:57]} 6. Qc2 {[%clk 0:02:46]}  Bd6 {[%clk 0:02:56]} 7. Bd2 {[%clk 0:02:46]}  O-O {[%clk 0:02:54]} 8. O-O-O {[%clk 0:02:46]}  dxc4 {[%clk 0:02:49]} 9. Bxc4 {[%clk 0:02:46]}  b5 {[%clk 0:02:49]} 10. Bd3 {[%clk 0:02:46]}  Bb7 {[%clk 0:02:17]} 11. g4 {[%clk 0:02:36]}  c5 {[%clk 0:02:12]} 12. d5 {[%clk 0:02:22]}  b4 {[%clk 0:02:07]} 13. Ne4 {[%clk 0:01:55]}  Nxe4 {[%clk 0:01:58]} 14. Bxe4 {[%clk 0:01:55]}  Nf6 {[%clk 0:01:57]} 15. Ng5 {[%clk 0:01:48]}  Nxe4 {[%clk 0:01:56]} 16. Nxe4 {[%clk 0:01:46]}  exd5 {[%clk 0:01:51]} 17. Ng3 {[%clk 0:01:39]}  a5 {[%clk 0:01:36]} 18. Nf5 {[%clk 0:01:38]}  a4 {[%clk 0:01:32]} 19. Kb1 {[%clk 0:01:36]}  c4 {[%clk 0:01:28]} 20. a3 {[%clk 0:01:24]}  c3 {[%clk 0:01:13]} 21. Bc1 {[%clk 0:01:14]}  Be5 {[%clk 0:01:04]} 22. axb4 {[%clk 0:01:10]}  cxb2 {[%clk 0:01:00]} 23. Bxb2 {[%clk 0:01:10]}  Rc8 {[%clk 0:01:00]} 24. Qxa4 {[%clk 0:00:55]}  Bxb2 {[%clk 0:00:55]} 25. Kxb2 {[%clk 0:00:55]}  Qf6+ {[%clk 0:00:55]} 26. Rd4 {[%clk 0:00:52]}  g6 {[%clk 0:00:54]} 27. Qd7 {[%clk 0:00:52]}  Ba6 {[%clk 0:00:45]} 28. Qd6 {[%clk 0:00:34]}  Qxd6 {[%clk 0:00:45]} 29. Nxd6 {[%clk 0:00:34]}  Rc6 {[%clk 0:00:46]} 30. Rxd5 {[%clk 0:00:31]}  Be2 {[%clk 0:00:44]} 31. Rc1 {[%clk 0:00:24]}  Rb6 {[%clk 0:00:42]} 32. Rd4 {[%clk 0:00:25]}  Bxg4 {[%clk 0:00:40]} 33. Rxg4 {[%clk 0:00:16]}  Rxd6 {[%clk 0:00:39]} 34. Rd4 {[%clk 0:00:16]}  Rb6 {[%clk 0:00:37]} 35. Rc5 {[%clk 0:00:15]}  Ra8 {[%clk 0:00:34]} 36. Kb3 {[%clk 0:00:13]}  Ra1 {[%clk 0:00:32]} 37. Rc2 {[%clk 0:00:14]}  Rb1+ {[%clk 0:00:31]} 38. Rb2 {[%clk 0:00:11]}  Rh1 {[%clk 0:00:29]} 39. h4 {[%clk 0:00:10]}  h5 {[%clk 0:00:27]} 40. Kc4 {[%clk 0:00:09]}  Rc1+ {[%clk 0:00:26]} 41. Kd5 {[%clk 0:00:10]}  Rb5+ {[%clk 0:00:25]} 42. Ke4 {[%clk 0:00:09]}  f6 {[%clk 0:00:24]} 43. Rbd2 {[%clk 0:00:08]}  Rb1 {[%clk 0:00:23]} 44. Rd8+ {[%clk 0:00:08]}  Kf7 {[%clk 0:00:21]} 45. R2d7+ {[%clk 0:00:08]}  Ke6 {[%clk 0:00:21]} 46. Rd6+ {[%clk 0:00:09]}  Ke7 {[%clk 0:00:20]} 47. R8d7+ {[%clk 0:00:09]}  Ke8 {[%clk 0:00:20]} 48. Rg7 {[%clk 0:00:08]}  R1xb4+ {[%clk 0:00:19]} 49. Kd3 {[%clk 0:00:09]}  Rb3+ {[%clk 0:00:18]} 50. Ke4 {[%clk 0:00:06]}  R3b4+ {[%clk 0:00:17]} 51. Rd4 {[%clk 0:00:06]}  Re5+ {[%clk 0:00:16]} 52. Kd3 {[%clk 0:00:05]}  Rb3+ {[%clk 0:00:16]} 53. Kc4 {[%clk 0:00:05]}  Reb5 {[%clk 0:00:14]} 54. Rxg6 {[%clk 0:00:04]}  Kf7 {[%clk 0:00:13]} 55. Rg3 {[%clk 0:00:04]}  Ke6 {[%clk 0:00:12]} 56. Rf3 {[%clk 0:00:03]}  R5b4+ {[%clk 0:00:11]} 57. Kc5 {[%clk 0:00:04]}  Rb5+ {[%clk 0:00:10]} 58. Kc6 {[%clk 0:00:04]}  Rb6+ {[%clk 0:00:09]} 59. Kc5 {[%clk 0:00:04]}  R6b5+ {[%clk 0:00:08]} 60. Kc6 {[%clk 0:00:05]}  Rb6+ {[%clk 0:00:07]} 61. Kc7 {[%clk 0:00:05]}  Rb7+ {[%clk 0:00:05]} 62. Kc6 {[%clk 0:00:05]}  R7b6+ {[%clk 0:00:04]} 1/2-1/2

[Event "December 12 Early 2023"]
[Site "https://www.chess.com"]
[Date "2023.12.12"]
[Round "11"]
[White "Mikhailovsky, Vladimir"]
[Black "Yaran, Siar"]
[Result "0-1"]
[Board "20"]
[TimeControl "180+1"]
[WhiteFideId "34105414"]
[BlackFideId "6323006"]
[WhiteElo "2801"]
[BlackElo "2694"]
[WhiteTeam "RUS"]
[BlackTeam "TUR"]
[WhiteClock "0:00:00"]
[BlackClock "0:00:41"]

1. e4 {[%clk 0:03:00]}  e5 {[%clk 0:02:59]} 2. Nf3 {[%clk 0:03:00]}  Nc6 {[%clk 0:03:00]} 3. Nc3 {[%clk 0:03:01]}  Nf6 {[%clk 0:02:59]} 4. d4 {[%clk 0:03:01]}  exd4 {[%clk 0:02:59]} 5. Nxd4 {[%clk 0:03:02]}  Bb4 {[%clk 0:02:59]} 6. Nxc6 {[%clk 0:03:03]}  bxc6 {[%clk 0:02:59]} 7. Bd3 {[%clk 0:03:04]}  d5 {[%clk 0:02:59]} 8. exd5 {[%clk 0:03:05]}  Qe7+ {[%clk 0:02:59]} 9. Qe2 {[%clk 0:03:01]}  Qxe2+ {[%clk 0:02:58]} 10. Kxe2 {[%clk 0:03:02]}  Nxd5 {[%clk 0:02:59]} 11. Nxd5 {[%clk 0:03:00]}  cxd5 {[%clk 0:02:58]} 12. Bf4 {[%clk 0:03:01]}  Kd7 {[%clk 0:02:57]} 13. Rhd1 {[%clk 0:02:53]}  Bd6 {[%clk 0:02:50]} 14. Kf3 {[%clk 0:02:42]}  Bxf4 {[%clk 0:02:44]} 15. Kxf4 {[%clk 0:02:43]}  Kd6 {[%clk 0:02:45]} 16. c4 {[%clk 0:02:35]}  c6 {[%clk 0:02:44]} 17. Rac1 {[%clk 0:02:27]}  Be6 {[%clk 0:02:42]} 18. h4 {[%clk 0:02:25]}  Rab8 {[%clk 0:02:34]} 19. Rc2 {[%clk 0:02:23]}  Rb4 {[%clk 0:02:27]} 20. Ke3 {[%clk 0:01:52]}  Rhb8 {[%clk 0:02:07]} 21. Rdd2 {[%clk 0:01:49]}  h6 {[%clk 0:01:58]} 22. f4 {[%clk 0:01:44]}  a5 {[%clk 0:01:50]} 23. f5 {[%clk 0:01:32]}  Bd7 {[%clk 0:01:50]} 24. g4 {[%clk 0:00:59]}  Re8+ {[%clk 0:01:37]} 25. Kf3 {[%clk 0:00:48]}  Re1 {[%clk 0:01:36]} 26. g5 {[%clk 0:00:32]}  hxg5 {[%clk 0:01:32]} 27. hxg5 {[%clk 0:00:33]}  Rg1 {[%clk 0:01:24]} 28. Kf4 {[%clk 0:00:18]}  g6 {[%clk 0:01:00]} 29. fxg6 {[%clk 0:00:17]}  fxg6 {[%clk 0:00:59]} 30. Bxg6 {[%clk 0:00:17]}  Rg4+ {[%clk 0:00:58]} 31. Kf3 {[%clk 0:00:14]}  Rxg5 {[%clk 0:00:54]} 32. Bd3 {[%clk 0:00:13]}  Rb8 {[%clk 0:00:51]} 33. cxd5 {[%clk 0:00:05]}  cxd5 {[%clk 0:00:44]} 34. Rf2 {[%clk 0:00:03]}  Re8 {[%clk 0:00:42]} 35. Rce2 {[%clk 0:00:01]}  Bg4+ {[%clk 0:00:40]} 36. Kf4 {[%clk 0:00:00]}  Bxe2 {[%clk 0:00:41]} 0-1

[Event "December 12 Early 2023"]
[Site "https://www.chess.com"]
[Date "2023.12.12"]
[Round "11"]
[White "DHLT216"]
[Black "Bortnyk, Olexandr"]
[Result "0-1"]
[Board "22"]
[TimeControl "180+1"]
[BlackFideId "14120828"]
[WhiteElo "2678"]
[BlackElo "2986"]
[BlackTeam "UKR"]
[WhiteClock "0:00:00"]
[BlackClock "0:00:55"]

1. d4 {[%clk 0:03:00]}  d6 {[%clk 0:03:00]} 2. e4 {[%clk 0:02:59]}  Nf6 {[%clk 0:03:00]} 3. Nc3 {[%clk 0:02:59]}  Nbd7 {[%clk 0:03:01]} 4. Nf3 {[%clk 0:02:58]}  e5 {[%clk 0:03:02]} 5. Bc4 {[%clk 0:02:54]}  Be7 {[%clk 0:03:03]} 6. O-O {[%clk 0:02:53]}  c6 {[%clk 0:03:04]} 7. a4 {[%clk 0:02:53]}  Qc7 {[%clk 0:03:04]} 8. a5 {[%clk 0:02:51]}  h6 {[%clk 0:03:05]} 9. Re1 {[%clk 0:02:50]}  Rb8 {[%clk 0:03:03]} 10. h3 {[%clk 0:02:47]}  g5 {[%clk 0:03:03]} 11. b3 {[%clk 0:02:06]}  Nf8 {[%clk 0:02:57]} 12. Be3 {[%clk 0:01:55]}  g4 {[%clk 0:02:57]} 13. dxe5 {[%clk 0:01:52]}  gxf3 {[%clk 0:02:55]} 14. exf6 {[%clk 0:01:52]}  Bxf6 {[%clk 0:02:56]} 15. Bd4 {[%clk 0:01:50]}  Bxd4 {[%clk 0:02:52]} 16. Qxd4 {[%clk 0:01:50]}  Rg8 {[%clk 0:02:53]} 17. e5 {[%clk 0:01:42]}  Rxg2+ {[%clk 0:02:50]} 18. Kh1 {[%clk 0:01:41]}  d5 {[%clk 0:02:48]} 19. Bxd5 {[%clk 0:01:37]}  Qd7 {[%clk 0:02:37]} 20. e6 {[%clk 0:01:35]}  fxe6 {[%clk 0:02:32]} 21. Qe5 {[%clk 0:01:25]}  cxd5 {[%clk 0:02:11]} 22. Qxb8 {[%clk 0:01:23]}  Rxf2 {[%clk 0:01:55]} 23. Rad1 {[%clk 0:01:14]}  Kd8 {[%clk 0:01:31]} 24. Ne4 {[%clk 0:00:47]}  Rxc2 {[%clk 0:01:26]} 25. Nf6 {[%clk 0:00:35]}  Qc7 {[%clk 0:01:23]} 26. Qxc7+ {[%clk 0:00:29]}  Rxc7 {[%clk 0:01:21]} 27. Rf1 {[%clk 0:00:24]}  Rc3 {[%clk 0:01:20]} 28. Ng4 {[%clk 0:00:19]}  Ng6 {[%clk 0:01:17]} 29. Kh2 {[%clk 0:00:18]}  Ke7 {[%clk 0:01:13]} 30. Kg3 {[%clk 0:00:18]}  h5 {[%clk 0:01:13]} 31. Nf2 {[%clk 0:00:16]}  h4+ {[%clk 0:01:13]} 32. Kg4 {[%clk 0:00:16]}  Kf6 {[%clk 0:01:09]} 33. Nd3 {[%clk 0:00:12]}  e5+ {[%clk 0:00:59]} 34. Kxf3 {[%clk 0:00:12]}  Nf4 {[%clk 0:00:59]} 35. Ke3 {[%clk 0:00:12]}  d4+ {[%clk 0:00:59]} 36. Kf3 {[%clk 0:00:04]}  Bxh3 {[%clk 0:00:58]} 37. Rf2 {[%clk 0:00:00]}  Kf5 {[%clk 0:00:55]} 0-1

[Event "December 12 Early 2023"]
[Site "https://www.chess.com"]
[Date "2023.12.12"]
[Round "11"]
[White "Srihari L R"]
[Black "Chigaev, Maksim"]
[Result "0-1"]
[Board "23"]
[TimeControl "180+1"]
[WhiteFideId "46617116"]
[BlackFideId "4108116"]
[WhiteElo "2740"]
[BlackElo "2907"]
[WhiteTeam "IND"]
[BlackTeam "ESP"]
[WhiteClock "0:00:00"]
[BlackClock "0:00:15"]

1. c4 {[%clk 0:03:00]}  g6 {[%clk 0:02:58]} 2. Nc3 {[%clk 0:02:59]}  Bg7 {[%clk 0:02:58]} 3. Nf3 {[%clk 0:02:59]}  d6 {[%clk 0:02:58]} 4. d4 {[%clk 0:02:57]}  Nf6 {[%clk 0:02:58]} 5. g3 {[%clk 0:02:54]}  O-O {[%clk 0:02:58]} 6. Bg2 {[%clk 0:02:54]}  c5 {[%clk 0:02:58]} 7. d5 {[%clk 0:02:51]}  e6 {[%clk 0:02:57]} 8. O-O {[%clk 0:02:50]}  exd5 {[%clk 0:02:57]} 9. cxd5 {[%clk 0:02:50]}  Re8 {[%clk 0:02:57]} 10. Bf4 {[%clk 0:02:49]}  Bf5 {[%clk 0:02:57]} 11. Nh4 {[%clk 0:02:49]}  Bg4 {[%clk 0:02:58]} 12. Qd2 {[%clk 0:02:41]}  b5 {[%clk 0:02:56]} 13. Rfe1 {[%clk 0:02:40]}  b4 {[%clk 0:02:55]} 14. Nb5 {[%clk 0:02:35]}  Ne4 {[%clk 0:02:51]} 15. Bxe4 {[%clk 0:02:08]}  Rxe4 {[%clk 0:02:52]} 16. f3 {[%clk 0:02:04]}  a6 {[%clk 0:02:52]} 17. fxe4 {[%clk 0:01:55]}  axb5 {[%clk 0:02:50]} 18. Nf3 {[%clk 0:01:29]}  Qe7 {[%clk 0:01:48]} 19. e5 {[%clk 0:01:24]}  dxe5 {[%clk 0:01:47]} 20. Bh6 {[%clk 0:01:19]}  Bxh6 {[%clk 0:01:31]} 21. Qxh6 {[%clk 0:01:18]}  Bxf3 {[%clk 0:01:32]} 22. exf3 {[%clk 0:01:06]}  Nd7 {[%clk 0:01:32]} 23. Qe3 {[%clk 0:00:45]}  Qd6 {[%clk 0:01:28]} 24. f4 {[%clk 0:00:26]}  f6 {[%clk 0:01:12]} 25. a3 {[%clk 0:00:26]}  bxa3 {[%clk 0:00:52]} 26. Rxa3 {[%clk 0:00:27]}  Rxa3 {[%clk 0:00:51]} 27. Qxa3 {[%clk 0:00:27]}  Qxd5 {[%clk 0:00:52]} 28. Qe3 {[%clk 0:00:16]}  Kg7 {[%clk 0:00:43]} 29. Qe2 {[%clk 0:00:09]}  c4 {[%clk 0:00:40]} 30. Rd1 {[%clk 0:00:09]}  Qc6 {[%clk 0:00:33]} 31. Qg2 {[%clk 0:00:09]}  e4 {[%clk 0:00:30]} 32. Qd2 {[%clk 0:00:07]}  Nc5 {[%clk 0:00:29]} 33. Qd6 {[%clk 0:00:05]}  Qxd6 {[%clk 0:00:28]} 34. Rxd6 {[%clk 0:00:06]}  Nd3 {[%clk 0:00:29]} 35. Rd5 {[%clk 0:00:02]}  b4 {[%clk 0:00:26]} 36. Rd4 {[%clk 0:00:02]}  e3 {[%clk 0:00:23]} 37. Kf1 {[%clk 0:00:01]}  Nxb2 {[%clk 0:00:23]} 38. Rd7+ {[%clk 0:00:02]}  Kh6 {[%clk 0:00:21]} 39. Rb7 {[%clk 0:00:02]}  c3 {[%clk 0:00:16]} 40. Ke2 {[%clk 0:00:02]}  c2 {[%clk 0:00:15]} 41. Rc7 {[%clk 0:00:02]}  b3 {[%clk 0:00:16]} 42. Kxe3 {[%clk 0:00:03]}  Nc4+ {[%clk 0:00:15]} 43. Kd3 {[%clk 0:00:00]}  c1=Q {[%clk 0:00:15]} 0-1